Cogmind - Beta 10.2 @@@ ROGUE MODE // 2021.02.03 @ 11:39:22 Player: Demise Result: Destroyed by 1C-UTU with 1C-UTU's Sword "Choppy" Performance ------------- Evolutions (1) 500 Regions Visited (6) 1200 Robots Destroyed (98) 490 Value Destroyed (2353) 2353 Prototype IDs (40) 800 Alien Tech Used (0) 0 Bonus (1087) 1087 TOTAL SCORE: 6430 Bonus ------- High Alert Combat Kills 537 Follower Combat Kills 394 Aligned with FarCom 300 Friendly Fire -144 Cogmind --------- Core Integrity 0/400 Matter 242/300 Energy 194/200 System Corruption 0% Temperature Cool (2) Movement Walking (150) Ox1 Location -8/Mines Parts ------- > --- POWER (1) -------- Cold Fusion Reactor > --- PROPULSION (2) --- Advanced Myomer Leg Advanced Myomer Leg > --- UTILITY (4) ------ Large Storage Unit Large Storage Unit Large Storage Unit High-capacity Storage Unit > --- WEAPON (2) ------- Improved Assault Rifle Improved Assault Rifle > --- INVENTORY (30) --- Makeshift Power Source Makeshift Power Source Makeshift Power Source Potential Leg Potential Leg Medium Matter Pod (100) High-capacity Matter Pod (200) High-capacity Matter Pod (200) Improved Signal Interpreter Advanced Launcher Guidance Computer Improved Target Analyzer Advanced Core Analyzer Advanced Transmission Jammer Improved ECM Suite Hacking Suite EX Chip 2 EX Chip 2 Corruption Screen System Purifier Supersonic Drone Bay (1/1) Improved EM Shotgun Improved EM Shotgun Improved Assault Rifle Improved Assault Rifle EMP Blaster Rocket Launcher Datajack Field Lobotomy Kit Katana Peak State ------------ > --- POWER ------------ Cold Fusion Reactor > --- PROPULSION ------- Advanced Myomer Leg Advanced Myomer Leg > --- UTILITY ---------- Large Storage Unit Large Storage Unit Large Storage Unit High-capacity Storage Unit > --- WEAPON ----------- Improved Assault Rifle Improved Assault Rifle > --- INVENTORY -------- Makeshift Power Source Makeshift Power Source Makeshift Power Source Potential Leg Potential Leg Medium Matter Pod High-capacity Matter Pod High-capacity Matter Pod Improved Signal Interpreter Transport Network Coupler Improved Target Analyzer Advanced Core Analyzer Advanced Transmission Jammer Improved ECM Suite Hacking Suite Corruption Screen System Purifier Supersonic Drone Bay Improved EM Shotgun Improved EM Shotgun Heavy Assault Rifle Improved Assault Rifle Improved Assault Rifle Improved Assault Rifle EMP Blaster Rocket Launcher Datajack Field Lobotomy Kit Katana Deploy-a-Sentry [Rating: 45] Favorites ----------- Power Improved Ion Engine Engine Improved Ion Engine Power Core Light Nuclear Core Reactor Cold Fusion Reactor Propulsion Light Treads Treads Light Treads Leg Advanced Myomer Leg Utility Large Storage Unit Device System Purifier Storage Large Storage Unit Processor Targeting Computer Protection Hardened Light Armor Plating Weapon Improved Assault Rifle Energy Gun EM Pulse Gun Ballistic Gun Improved Assault Rifle Launcher Rocket Launcher Special Weapon Plasma Cutter Slashing Weapon Katana Special Melee Weapon Datajack Build | -11 -10 -10 -9 -9 -9 -8 ------- Run | Scr Mat Min Mat Min Exi Min Slots Evolved 2 | . . . 2 . . . Power . | . . . . . . . Propulsion . | . . . . . . . Utility 2 | . . . 2 . . . Weapon . | . . . . . . . Parts Attached 114 | 4 13 3 51 7 34 2 Power 12 | . 1 1 6 . 4 . Engine 9 | . 1 1 5 . 2 . Core 2 | . . . 1 . 1 . Reactor 1 | . . . . . 1 . Propulsion 28 | 2 1 2 13 1 9 . Treads 24 | 2 1 2 13 1 5 . Leg 4 | . . . . . 4 . Wheel . | . . . . . . . Hover . | . . . . . . . Flight . | . . . . . . . Utility 29 | . 4 . 14 2 9 . Device 3 | . . . 1 . 2 . Storage 11 | . 2 . 3 1 5 . Processor 4 | . 2 . 1 1 . . Hackware . | . . . . . . . Protection 11 | . . . 9 . 2 . Artifact . | . . . . . . . Weapon 45 | 2 7 . 18 4 12 2 Energy Gun 7 | 1 3 . 3 . . . Energy Cannon . | . . . . . . . Ballistic Gun 26 | 1 3 . 13 2 6 1 Ballistic Cannon . | . . . . . . . Launcher 8 | . 1 . 2 2 2 1 Special Weapon 1 | . . . . . 1 . Impact Weapon . | . . . . . . . Slashing Weapon 1 | . . . . . 1 . Piercing Weapon . | . . . . . . . Special Melee Weapon 2 | . . . . . 2 . Unidentified Prototypes 4 | . . . 4 . . . Parts Lost 13 | . . . 4 . 9 . Power 5 | . . . 3 . 2 . Propulsion 4 | . . . 1 . 3 . Utility 2 | . . . . . 2 . Weapon 2 | . . . . . 2 . Highest Loss Streak 5 | . . . 2 . 5 . Average Slot Usage (%) 97 | . 97 100 98 100 95 100 Engine 9 | . 13 14 10 11 6 . Reactor 1 | . . . . . 3 11 Treads 21 | . 28 28 21 22 16 . Leg 1 | . . . . . 4 22 Storage 30 | . 15 28 30 33 37 44 Processor 1 | . 10 . . . . . Protection 6 | . . . 12 11 3 . Energy Gun 4 | . 9 28 1 . . . Ballistic Gun 16 | . 18 . 20 21 13 22 Naked Turns . | . . . . . . . Heaviest Build 98 | 3 41 43 68 62 98 98 Greatest Support 60 | 20 40 40 46 43 60 60 Greatest Overweight (x) 2 | . 1 1 1 1 2 1 Average Overweight (x) . | . . 1 1 1 . 1 Largest Inventory Capacity 30 | 4 16 16 22 26 30 30 Average Capacity 19 | 4 10 16 20 22 22 30 Most Carried 30 | 4 14 16 22 23 30 30 Average Carried 17 | 2 7 15 20 22 20 29 Final Capacity 30 | 4 16 16 22 26 30 30 Final Carried 30 | 3 14 16 22 23 30 29 Class Distribution -------------------- 47% | Hauler-Mutant 34% | Mutant 10% | Scavenger-Mutant 6% | Commander-Mutant Dominant Class ---------------- Mutant | -10/Materials Mutant | -10/Mines Hauler-Mutant | -9/Materials Hauler-Mutant | -9/Mines Hauler-Mutant | -9/Exiles Hauler-Mutant | -8/Mines Resources | -11 -10 -10 -9 -9 -9 -8 ----------- Run | Scr Mat Min Mat Min Exi Min Matter Collected 3447 | 256 248 110 1420 190 1223 . Remotely . | . . . . . . . Salvage Created 3696 | 162 510 . 2267 181 576 . Parts 268 | 13 32 . 140 15 68 . Haulers Intercepted 5 | . . . 5 . . . Recyclers Shooed 2 | . . . 2 . . . Parts Field Recycled . | . . . . . . . Retrieved Matter . | . . . . . . . Parts Self-Destructed . | . . . . . . . Prevented . | . . . . . . . Kills | -11 -10 -10 -9 -9 -9 -8 ------- Run | Scr Mat Min Mat Min Exi Min Combat Hostiles Destroyed 69 | . 11 . 43 9 6 . Guns 63 | . 11 . 41 8 3 . AOE 6 | . . . 2 1 3 . Classes Destroyed 16 | 2 4 . 7 . 3 . Worker 2 | . 1 . 1 . . . Tunneler 5 | 5 . . . . . . Hauler 5 | . . . 5 . . . Recycler 2 | 1 . . 1 . . . Mechanic 1 | . . . 1 . . . Operator 3 | . . . 3 . . . Turret 1 | . . . . . 1 . Watcher 4 | . 3 . 1 . . . Swarmer 14 | . 3 . 4 7 . . Grunt 37 | . 8 . 27 2 . . Brawler 2 | . . . 2 . . . Duelist 3 | . . . 3 . . . Protector 1 | . . . 1 . . . Sentry 7 | . . . 7 . . . Zionite 8 | . . . . . 8 . Assembled 5 | . . . . . 5 . Best Kill Streak 5 | 4 4 . 5 4 4 . Combat Bots Only 5 | . 4 . 5 4 4 . Max Kills in Single Turn 2 | 1 1 . 2 2 2 . Gunslinging 1 | . . . 1 1 . . Exploded 2 | . . . 2 1 2 . Melee . | . . . . . . . Uniques/NPCs Destroyed 4 | . . . . . 4 . 8R-AWN (-9/Exiles) EX-HEX (-9/Exiles) EX-DEC (-9/Exiles) EX-BIN (-9/Exiles) Combat | -11 -10 -10 -9 -9 -9 -8 -------- Run | Scr Mat Min Mat Min Exi Min Damage Taken 4124 | . 284 62 1859 264 1377 278 Core 449 | . 37 . 189 15 129 79 Absorbed by Shields . | . . . . . . . Core Remaining (%) 92 | 100 . 85 . . . . Volleys Fired 383 | 16 50 4 160 19 129 5 Largest 2 | 2 2 2 2 2 2 2 Hottest 80 | 60 70 80 80 56 46 56 Shots Fired 671 | 32 83 7 316 36 187 10 Gun 610 | 32 82 7 314 31 135 9 Cannon . | . . . . . . . Launcher 22 | . 1 . 2 5 13 1 Special 39 | . . . . . 39 . Kinetic 527 | 16 38 . 298 31 135 9 Thermal 48 | . 9 . . . 39 . Explosive 20 | . 1 . 2 3 13 1 Electromagnetic 76 | 16 35 7 16 2 . . Robot Hit Streak 31 | 8 15 4 31 10 15 10 Robot Miss Streak 4 | 2 2 3 3 2 4 . Penetration Max . | . . . . . . . Secondary Targets 16 | . 3 . 9 3 1 . Max Gunslinging Chain 1 | . 1 . 1 1 1 . Shots Hit Robots 485 | 23 63 4 238 21 132 4 Core Hits 186 | 9 24 . 94 10 49 . Critical Hits 7 | . . . 2 . 5 . Critical Kills 3 | . . . 1 . 2 . Critical Parts Destroyed 4 | . . . 1 . 3 . Melee Attacks 4 | . . . . . 4 . Impact . | . . . . . . . Slashing . | . . . . . . . Piercing . | . . . . . . . Sneak Attacks 4 | . . . . . 4 . Combat Hostiles . | . . . . . . . Follow-up Attacks . | . . . . . . . Damage Inflicted 7753 | 299 860 71 3652 355 2381 135 Guns 6411 | 257 754 54 3560 279 1448 59 Cannons . | . . . . . . . Explosions 968 | 42 106 . 92 76 576 76 Melee . | . . . . . . . Ramming 17 | . . 17 . . . . Kinetic 5499 | 70 247 . 3396 279 1448 59 Thermal 622 | 42 182 . . . 357 41 Explosive 703 | . . . 92 . 576 35 Electromagnetic 912 | 187 431 54 164 76 . . Impact . | . . . . . . . Slashing . | . . . . . . . Piercing . | . . . . . . . Highest Corruption 10 | . 1 1 5 5 10 . Average Corruption 3 | . 1 1 1 5 5 . Corruption Purged 10 | . . . . . 10 . Effects 107 | . 4 6 19 23 55 . Message Errors 31 | . 1 2 6 6 16 . Matter Fused 16 | . . . 2 5 9 . Heat Flow Errors 12 | . . . 1 4 7 . Energy Discharges 16 | . 1 2 1 5 7 . Data Loss (minor) 9 | . 1 2 4 . 2 . Data Loss (major) 2 | . . . . . 2 . Misfires 2 | . . . . 1 1 . Misdirections 1 | . . . . . 1 . Targeting Errors 16 | . 1 . 4 2 9 . Weapon Failures 2 | . . . 1 . 1 . Overload Shots . | . . . . . . . Overflow Damage 41 | 12 . . . 8 21 . Projectiles . | . . . . . . . Explosions 41 | 12 . . . 8 21 . Melee . | . . . . . . . Knockbacks . | . . . . . . . Impact . | . . . . . . . Kinetic . | . . . . . . . Secondary . | . . . . . . . Self-Inflicted Damage 77 | . . . . 46 31 . Shots 3 | . . . . 2 1 . Rammed 1 | . . 1 . . . . Targets Rammed 1 | . . 1 . . . . Kicked . | . . . . . . . Crushed . | . . . . . . . Highest Temperature 256 | 20 148 72 120 256 215 . Average Temperature 44 | 8 41 22 14 93 59 . Received Heat Transfer 869 | . 87 36 699 27 20 . Effects 2 | . . . . 2 . . Interference 2 | . . . . 2 . . Siege Activations . | . . . . . . . Robots Corrupted 2 | . 2 . . . . . Combat Hostiles . | . . . . . . . Parts Fried 10 | 2 8 . . . . . Impact Corruptions . | . . . . . . . Robots Melted . | . . . . . . . Combat Hostiles . | . . . . . . . Parts Melted . | . . . . . . . Heat Transferred 1618 | 50 372 . . . 1184 12 Parts Sabotaged . | . . . . . . . Parts Stolen . | . . . . . . . Parts Stripped . | . . . . . . . Power Chain Reactions 3 | 1 2 . . . . . Missiles Intercepted . | . . . . . . . Alert | -11 -10 -10 -9 -9 -9 -8 ------- Run | Scr Mat Min Mat Min Exi Min Peak Influence 1149 | 30 160 58 1149 519 . 68 Initial 379 | . 19 27 22 379 . . Average 358 | 11 69 27 623 381 . 19 Maximum Alert Level 4 | . . . 4 2 . . Low Security (%) 42 | 100 100 100 6 . . 100 Level 1 19 | . . . 20 59 . . Level 2 20 | . . . 31 40 . . Level 3 15 | . . . 36 . . . Level 4 2 | . . . 4 . . . Level 5 . | . . . . . . . High Security . | . . . . . . . Max Security . | . . . . . . . Squads Dispatched 16 | . 4 . 12 . . . Investigation 8 | . 3 . 5 . . . Extermination . | . . . . . . . Reinforcement 5 | . 1 . 4 . . . Assault 3 | . . . 3 . . . Garrison . | . . . . . . . Intercept . | . . . . . . . Construction Impeded . | . . . . . . . Haulers Reinforced . | . . . . . . . Stealth | -11 -10 -10 -9 -9 -9 -8 --------- Run | Scr Mat Min Mat Min Exi Min Distress Signals 2 | . . . 2 . . . Communications Jammed . | . . . . . . . Distress Signals . | . . . . . . . Times Spotted 150 | . 20 4 86 9 30 1 Peak Tracking Total 9 | . 3 2 7 4 9 1 Tactical Retreats 11 | . . . 9 . 2 . Traps | -11 -10 -10 -9 -9 -9 -8 ------- Run | Scr Mat Min Mat Min Exi Min Traps Triggered 4 | . 2 . 2 . . . Indirectly . | . . . . . . . Trap Hack Attempts . | . . . . . . . Triggered . | . . . . . . . Disarmed . | . . . . . . . Reprogrammed . | . . . . . . . Reused . | . . . . . . . Traps Extracted . | . . . . . . . Installed . | . . . . . . . Triggered 1 | . 1 . . . . . Exploded 3 | . . . . . 3 . Machines | -11 -10 -10 -9 -9 -9 -8 ---------- Run | Scr Mat Min Mat Min Exi Min Machines Disabled 19 | . . . 1 4 10 4 Max in Single Turn 4 | . . . 1 4 2 2 Machines Sabotaged . | . . . . . . . Garrisons Compromised . | . . . . . . . Overloaded Fab Kills . | . . . . . . . Fab Network Shutdowns . | . . . . . . . Hacking | -11 -10 -10 -9 -9 -9 -8 --------- Run | Scr Mat Min Mat Min Exi Min Machines Accessed 23 | . 8 . 13 . 2 . Terminals 13 | . 6 . 7 . . . Fabricators . | . . . . . . . Repair Stations 2 | . . . 2 . . . Recycling Units 4 | . 2 . 2 . . . Scanalyzers 2 | . . . 2 . . . Garrison Access . | . . . . . . . Total Hacks 65 | . 25 . 38 . 2 . Successful 45 | . 16 . 27 . 2 . Failed 19 | . 9 . 10 . . . Catastrophic 2 | . . . 2 . . . Database Lockouts 1 | . . . 1 . . . Manual 40 | . 18 . 21 . 1 . Terminals 37 | . 17 . 20 . . . Fabricators . | . . . . . . . Repair Stations 8 | . . . 8 . . . Recycling Units 14 | . 8 . 6 . . . Scanalyzers 4 | . . . 4 . . . Garrison Access . | . . . . . . . Terminal Hacks 14 | . 6 . 6 . 2 . Record 1 | . . . . . 1 . Part Schematic 2 | . . . 2 . . . Robot Analysis 3 | . 2 . 1 . . . Branch Access Points 2 | . 1 . 1 . . . Terminal Index 1 | . 1 . . . . . Unreport Threat 1 | . . . 1 . . . Locate Traps 1 | . 1 . . . . . Hauler Manifests 2 | . 1 . 1 . . . EX-Prototype ID Bank 1 | . . . . . 1 . Fabricator Hacks . | . . . . . . . Repair Station Hacks 6 | . . . 6 . . . Scan Component 3 | . . . 3 . . . Repair 3 | . . . 3 . . . Recycling Unit Hacks 4 | . 2 . 2 . . . Retrieve Components 4 | . 2 . 2 . . . Scanalyzer 4 | . . . 4 . . . Insert Component 2 | . . . 2 . . . Analyze 2 | . . . 2 . . . Garrison Access Hacks . | . . . . . . . Unauthorized Hacks 17 | . 8 . 9 . . . Terminals 10 | . 5 . 5 . . . Assimilate 2 | . 2 . . . . . Botnet 7 | . 2 . 5 . . . Operators 1 | . 1 . . . . . Fabricators . | . . . . . . . Repair Stations . | . . . . . . . Recycling Units 7 | . 3 . 4 . . . Reject 3 | . 1 . 2 . . . Mask 4 | . 2 . 2 . . . Scanalyzers . | . . . . . . . Garrison Access . | . . . . . . . Data Cores Recovered . | . . . . . . . Used . | . . . . . . . Hacking Detections 18 | . 6 . 12 . . . Full Trace Events 8 | . 3 . 5 . . . Feedback Events 1 | . . . 1 . . . Corruption 1 | . . . 1 . . . Feedback Blocked . | . . . . . . . Robot Schematics Acquired . | . . . . . . . Robots Built . | . . . . . . . Matter . | . . . . . . . Time . | . . . . . . . Total Robot Build Rating . | . . . . . . . Part Schematics Acquired 4 | . . . 4 . . . Parts Built . | . . . . . . . Matter . | . . . . . . . Time . | . . . . . . . Total Part Build Rating . | . . . . . . . Parts Repaired 3 | . . . 3 . . . Time 96 | . . . 96 . . . Parts Recycled . | . . . . . . . Recycled Matter . | . . . . . . . Retrieved Matter . | . . . . . . . Retrieved Components 22 | . 10 . 12 . . . Parts Scanalyzed 2 | . . . 2 . . . Part Schematics Acquired 2 | . . . 2 . . . Parts Damaged . | . . . . . . . Bothacking | -11 -10 -10 -9 -9 -9 -8 ------------ Run | Scr Mat Min Mat Min Exi Min Used RIF Installer . | . . . . . . . Robots Hacked 4 | . . . . . 4 . Non-combat 3 | . . . . . 3 . Combat 1 | . . . . . 1 . Robot Hacks Applied 4 | . . . . . 4 . parse_system 4 | . . . . . 4 . Relay Couplers Released . | . . . . . . . Robots Rewired . | . . . . . . . Allies Hacked . | . . . . . . . Hacks Repelled . | . . . . . . . Allies | -11 -10 -10 -9 -9 -9 -8 -------- Run | Scr Mat Min Mat Min Exi Min Total Allies 6 | . 1 5 . . . . Largest Group 6 | . 1 6 6 . . . Highest-Rated Group 92 | . 10 92 92 . . . Highest-Rated Ally 31 | . 10 31 31 . . . Total Orders 2 | . . 2 . . . . STAY 1 | . . 1 . . . . FOLLOW 1 | . . 1 . . . . Ally Attacks 94 | . . 11 76 . . 7 Total Damage 1554 | . . 156 982 . . 416 Kills 17 | . . 2 15 . . . Allies Corrupted . | . . . . . . . Allies Melted . | . . . . . . . Turrets Deployed 1 | . . . . . . 1 Intel | -11 -10 -10 -9 -9 -9 -8 ------- Run | Scr Mat Min Mat Min Exi Min Robot Analysis Total 3 | . 2 . 1 . . . Derelict Logs Recovered 3 | . . 2 . 1 . . Drone Launches . | . . . . . . . Drone Recoveries . | . . . . . . . Exploration | -11 -10 -10 -9 -9 -9 -8 ------------- Run | Scr Mat Min Mat Min Exi Min Turns Passed 8185 | 93 1298 750 2480 972 2528 64 Spaces Moved 3905 | 61 778 402 976 502 1167 19 Core 184 | 60 124 . . . . . Treads 3402 | 1 654 402 976 502 867 . Legs 319 | . . . . . 300 19 Wheels . | . . . . . . . Hover . | . . . . . . . Flight . | . . . . . . . Fastest Speed 50 | 50 50 180 180 180 90 150 Average Speed 166 | 51 142 180 180 180 168 150 Slowest Speed 200 | 160 180 180 180 180 200 150 Overloaded Moves . | . . . . . . . Propulsion Burnouts . | . . . . . . . Robots Hopped . | . . . . . . . Cave-ins Triggered . | . . . . . . . Exploration Rate (%) 68 | 5 97 98 84 96 91 10 Regions Visited 6 Branch Regions 4 Pre-discovered Areas 2 | . . 1 . . 1 . Known Exits Taken 3 | . 1 . 1 1 . . Unknown Exits Taken 3 | 1 . 1 . . 1 . Scrap Searched 3 | . . 1 . 2 . . Spaces Dug 25 | . 9 . 9 . 7 . Terrain Destroyed 110 | 3 18 . 19 34 25 11 Melee . | . . . . . . . Projectile . | . . . . . . . AOE 110 | 3 18 . 19 34 25 11 Terrain Rammed . | . . . . . . . Walls Destroyed . | . . . . . . . Machines Disabled . | . . . . . . . Actions | -11 -10 -10 -9 -9 -9 -8 --------- Run | Scr Mat Min Mat Min Exi Min Total 4911 | 91 893 424 1408 537 1513 45 Wait 290 | 6 31 3 138 2 92 18 Move 3899 | 60 777 401 975 501 1166 19 Hop . | . . . . . . . Pick Up 102 | 4 14 5 32 2 45 . Fast Attach 26 | 4 4 1 11 . 6 . Attach 34 | . 3 . 11 1 19 . Detach 20 | . 4 1 5 3 7 . Swap 55 | . 6 2 30 6 9 2 Drop 97 | 1 4 6 46 3 36 1 Fire 383 | 16 50 4 160 19 129 5 Melee 4 | . . . . . 4 . Ram . | . . . . . . . Kick . | . . . . . . . Crush 1 | . . 1 . . . . Escape Stasis . | . . . . . . . Rewire . | . . . . . . . Trap . | . . . . . . . Miscellaneous . | . . . . . . . Route ------- -11/Scrapyard -10/Materials (discovered 5 exits: *Mat x3 / *Min x2) -10/Mines (discovered 2 exits: *Mat x2) -9/Materials (discovered 4 exits: *Mat x2 / *Min x2) -9/Mines (discovered 3 exits: *Mat x2 / *Exi) -9/Exiles (discovered 2 exits: [*Min x2]) -8/Mines History --------- Turn | Location | Event 9 | -11/Scrapyard | Discovered new exit (range 15) 94 | -11/Scrapyard | Entered Materials 152 | -10/Materials | Discovered new exit (range 6) 310 | -10/Materials | Build established: Mutant 420 | -10/Materials | Discovered new exit (range 10) 644 | -10/Materials | Discovered new exit (range 15) 834 | -10/Materials | Identified exit to Mines 1208 | -10/Materials | Discovered new exit (range 9) 1392 | -10/Materials | Entered Mines 1392 | -10/Mines | Accompanied by 1 ally 1531 | -10/Mines | Joined a pair of Derelicts in attacking an 0b10 outpost 1788 | -10/Mines | Assisted by bots powering up and referring to "LRC-V3" 1843 | -10/Mines | Learned Materials terminal intel 1854 | -10/Mines | Discovered new exit (range 10) 1864 | -10/Mines | Learned location of Storage (-8) 1945 | -10/Mines | Learned Materials emergency access door positions 2075 | -10/Mines | Build established: Commander-Mutant 2130 | -10/Mines | Discovered new exit (range 2) 2142 | -10/Mines | Entered Materials 2142 | -9/Materials | Accompanied by 6 allies 2142 | -9/Materials | Evolved 2 slots: Utility x2 2144 | -9/Materials | Loaded intel: 12 terminal locations 2147 | -9/Materials | Led the pair of lost Derelicts to an unsafe place 2305 | -9/Materials | Discovered new exit (range 13) 2598 | -9/Materials | Identified exit to Mines 2721 | -9/Materials | Build established: Scavenger-Mutant 2768 | -9/Materials | Discovered new exit (range 15) 2860 | -9/Materials | Identified exit to Materials 3277 | -9/Materials | Build established: Hauler-Mutant 3342 | -9/Materials | First assault squad dispatched 3376 | -9/Materials | Repaired Hvy. Assault Rifle? 3529 | -9/Materials | Repaired Imp. Treads 3578 | -9/Materials | Repaired Imp. Treads 3756 | -9/Materials | Discovered exit to Materials (range 16) 4269 | -9/Materials | Central database locked down 4622 | -9/Materials | Entered Mines 4742 | -9/Mines | Discovered exit to Materials (range 14) 4890 | -9/Mines | Discovered exit to Materials (range 6) 5101 | -9/Mines | Received a Rocket Launcher from a helpful Derelict 5200 | -9/Mines | Learned location of 2 exits from Materials 5364 | -9/Mines | Core integrity fell below 50% 5581 | -9/Mines | Deemed a non-threat by the Exiles lab entrance 5581 | -9/Mines | Discovered new exit (range 5) 5591 | -9/Mines | Identified exit to Exiles 5594 | -9/Mines | Entered Exiles 5660 | -9/Exiles | Met 8R-AWN 5690 | -9/Exiles | Met EX-HEX 5807 | -9/Exiles | Met EX-DEC 5857 | -9/Exiles | Learned location of Zion (-6) 5982 | -9/Exiles | Met EX-BIN 6010 | -9/Exiles | Aligned with FarCom system 6011 | -9/Exiles | Given EX-Vault access code 6053 | -9/Exiles | Opened EX-Vault 6070 | -9/Exiles | Found Potential Leg 6072 | -9/Exiles | Found Potential Leg 6075 | -9/Exiles | Found Field Lobotomy Kit 6080 | -9/Exiles | Found Supersonic Drone Bay 6119 | -9/Exiles | Warned to stay clear of 0b10 Research branches 6230 | -9/Exiles | Discovered new exit (range 14) 6460 | -9/Exiles | Attacked by the Exiles 6575 | -9/Exiles | Build established: Mutant 6617 | -9/Exiles | Lost 5 parts (2p2n1w) 6649 | -9/Exiles | Destroyed 8R-AWN 6674 | -9/Exiles | Lost 3 parts (1n2u) 7130 | -9/Exiles | Destroyed EX-HEX 7139 | -9/Exiles | Core integrity fell below 20% 7139 | -9/Exiles | System corruption reached 10% 7161 | -9/Exiles | Destroyed EX-DEC 7270 | -9/Exiles | Destroyed EX-BIN 7297 | -9/Exiles | Found System Purifier 7508 | -9/Exiles | Build established: Scavenger-Mutant 7844 | -9/Exiles | Build established: Hauler-Mutant 7849 | -9/Exiles | Found Deploy-a-Sentry 8104 | -9/Exiles | Discovered new exit (range 14) 8122 | -9/Exiles | Stole four prototypes: Potential Leg, Supersonic Drone Bay, Field Lobotomy Kit, Deploy-a-Sentry 8122 | -9/Exiles | Entered Mines 8135 | -8/Mines | DAS Turret deployed 8170 | -8/Mines | 1C-UTU came to Exiles' defense 8186 | -8/Mines | Destroyed by 1C-UTU with 1C-UTU's Sword "Choppy" Last Messages --------------- 07851_ Dropped Transport Network Coupler. 07852_ Acquired Adv. Launcher Guidance Computer. 07853_ Dropped Hvy. Assault Rifle. 07864_ Acquired EX Chip 2. 07949_ Dropped Imp. Assault Rifle. 07951_ Acquired EX Chip 2. 08014_ Extracted 10 matter. 08104_ EXIT=FOUND A strange signal echoes through the mines. LOCATION=UNKNOWN GOAL=ESCAPE 08133_ Dropped Deploy-a-Sentry. 08135_ DAS Turret deployed. 08148_ Laser Drill disabled. 08170_ 1C-UTU: "I came as fast as I could... Wait, it was you!" 08174_ Plasma Injector explodes. 08174_ Laser Drill disabled. 08174_ 1C-UTU knocked back. 08178_ 1C-UTU suffers critical hit. 08178_ 1C-UTU knocked back. Map ----- +----------------------------------------------------+ | ????????????????????????????????????? | | ????????????????????????????????????? | | ????????????????????????????????????? | | ????????????????????????????????????? | | ????????????????????????????????????? | | ????????????????????????????????????? | | ????????????????????????????????????? | | ????????????????????????????????????? | | ????????????????????????????????????? | | ????????????????????????????????????? | | ????????????????????????????????????? | | ????????????????????????????????????? | | ????????????????????????????????????? | | ????????????????????????????????????? | | ????????????????????????????????????? | | ????????????????????????????????????? | | ????????????????????????????????????? | | ????????????????????????????????????? | | ????????????????????????????????????? | | ????????????????????????????????????? | | ????????????????????????????????????? | | ????????????????????????????????????? | | ???????????????????????? #??????????? | | ??????????############# ###????????? | | ??????????# t #????????? | | ??????????#l@ #????????? | | ??????????# #????????? | | ??????????# #????????? | | ?????????? "" """ #????????? | | ?????????# "" """ #????????? | | ????????? "" """ #????????? | | ????????## ???????????? | | ????????? ; " """ ?????????? | | ????????? "" """ ????????????? | | ????????##; """ ""??????????????? | | ?????????#; ?????????????? | | ?????????## "" """ """?????????????? | | ??????????# """ """ """?????????????? | | ??????????# """ ""??????????????????? | | ??????????# ???????????????????? | | ???????????##??##???????????????????? | | ????????????????????????????????????? | | ????????????????????????????????????? | | | | | | | | | | | | | | | +----------------------------------------------------+ Best States ------------- Heat Dissipation 28 Energy Generation 17 Energy Capacity 265 Matter Stores 500 Matter Capacity 500 Sight Range 18 Terrain Scan Density 10 ECM Strength 2 Corruption Prevention 20 Armor Coverage 300 Core Shielding 20 Evasion (%) 50 Targeting Accuracy 5 Recoil Reduction 2 Item Schematics ----------------- Plasma Cutter | -9/Materials | Scanalyzed Hcp. Storage Unit | -9/Materials | Hacked Lrg. Storage Unit | -9/Materials | Hacked Hacking Suite | -9/Materials | Scanalyzed Robot Schematics ------------------ None Fabricated ------------ Nothing Alien Tech Used ----------------- None Achievements -------------- None Challenges ------------ None Game ------ Seed IntegrityTeslaShredder Manual? 0 Play Time 00:57:47 Cumulative 266.7 hours Start 2021.02.03 @ 08:27:15 End 2021.02.03 @ 11:39:22 Sessions 3 Manual Loads 0 Difficulty Rogue Special Mode None Game No. 232 Rogue 232 Adventurer 0 Explorer 0 Win Type - Total 1 Types 0/0/0/1/0/0/0/0/0 Lore% 63 Gallery% 73 Achievement% 57 Wizard Run 0 Options --------- ASCII 0 Keyboard 1 Movement Numpad Keybinds 0 Fullscreen 1 Font 12/Terminus Map View 83x54 Tactical HUD 1 Map Filters NONE Filters NONE Steam 1 RUN: 832d5738-e21c-4bc2-8ec8-a480658586f7